fUSD/lending_fUSD_20240223
["ID","MTS","AMOUNT","RATE_DAILY","PERIOD"]
[315001748,1708725037796,-2837.128936,0.000329,2]
[315001749,1708725037808,-1366.3199996,0.000329,2]
[315001750,1708725037820,-1119.26696351,0.000329,2]
[315001751,1708725037829,-386.18829649,0.00033,6]
[315001752,1708725037841,-253.3534719,0.00033,6]
[315001753,1708725037867,-86.73039111,0.00033,6]
[315001754,1708725037876,-151.0,0.00033154,30]
[315001755,1708725037885,-88.71960889,0.00033262,2]
[315001756,1708725037897,-161.28039111,0.00033262,2]
[315001757,1708725037907,-150.0,0.00033347,2]
[315001758,1708725037916,-250.0,0.00033353,2]
[315001759,1708725037926,-280.0,0.00033421,2]
[315001760,1708725037936,-734.82611202,0.0003345,2]
[315001761,1708725037949,-515.78669105,0.0003345,2]
[315001764,1708725040084,-1997.29719693,0.0003345,2]
[315001765,1708725040093,-393.76,0.0003351,2]
[315001766,1708725040102,-398.74289899,0.00033544,2]
[315001767,1708725040114,-1.25710101,0.00033544,2]
[315001768,1708725040123,-423.2873603,0.00033569,2]
[315001769,1708725040198,-510.50635156,0.00033569,2]
[315001770,1708725040210,-938.06556108,0.00033569,2]
[315001771,1708725040222,-634.16072706,0.00033569,2]
[315001772,1708725040231,-151.0,0.00033831,7]
[315001773,1708725040240,-170.33714574,0.00033903,2]
[315001774,1708725040249,-170.33714574,0.00033903,2]
[315001775,1708725040258,-311.84775434,0.00033913,4]
[315001776,1708725040267,-500.0,0.00033913,4]
[315001777,1708725040276,-221.42699744,0.00033913,4]
[315001778,1708725040288,-278.57300256,0.00033913,4]
[315001779,1708725040306,-500.0,0.00033913,4]
[315001780,1708725040317,-500.0,0.00033913,4]
[315001781,1708725040327,-448.08651215,0.00033913,7]
[315001782,1708725040343,-499.69436571,0.00033913,7]
[315001783,1708725040355,-52.21912214,0.00033913,7]
[315001784,1708725040364,-299.82681749,0.00033913,4]
[315001785,1708725041005,-200.17318251,0.00033913,4]
[315001786,1708725041014,-500.0,0.00033913,4]
[315001787,1708725041023,-500.0,0.00033913,4]
[315001788,1708725041033,-500.0,0.00033913,4]
[315001789,1708725041042,-500.0,0.00033913,4]
[315001790,1708725041051,-500.0,0.00033913,4]
[315001791,1708725041061,-500.0,0.00033913,4]
[315001792,1708725041070,-500.0,0.00033913,2]
[315001793,1708725041079,-500.0,0.00033913,4]
[315001794,1708725041089,-500.0,0.00033913,4]
[315001795,1708725041099,-170.33714574,0.0003404,2]
[315001796,1708725041108,-170.33714574,0.0003404,2]
[315001797,1708725041118,-500.0,0.0003405,4]
[315001798,1708725041127,-500.0,0.0003405,4]
[315001799,1708725041137,-500.0,0.0003405,4]
[315001800,1708725041146,-500.0,0.0003405,4]
[315001801,1708725041155,-500.0,0.0003405,2]
[315001802,1708725041164,-158.09,0.00034107,2]
[315001803,1708725041174,-600.0,0.00034125,2]
[315001804,1708725041183,-170.33714574,0.00034155,2]
[315001805,1708725041192,-196.04,0.00034165,2]
[315001806,1708725041203,-500.0,0.00034187,4]
[315001807,1708725041212,-500.0,0.00034187,4]
[315001808,1708725041222,-150.0,0.00034237,2]
[315001809,1708725041231,-170.33714574,0.00034314,2]
[315001810,1708725041240,-500.0,0.00034324,4]
[315001811,1708725041250,-500.0,0.00034324,4]
[315001812,1708725041259,-150.0,0.00034406,2]
[315001813,1708725041268,-158.09,0.00034448,2]
[315001814,1708725041278,-170.33714574,0.00034451,2]
[315001815,1708725041287,-500.0,0.00034461,4]
[315001816,1708725041296,-500.0,0.00034461,4]
[315001817,1708725041305,-170.33714574,0.00034511,2]
[315001818,1708725041314,-1676.76,0.00034521,2]
[315001819,1708725041323,-151.0,0.00034521,4]
[315001820,1708725041332,-170.33714574,0.0003453,2]
[315001821,1708725041342,-912.42,0.0003454,2]
[315001822,1708725041351,-500.0,0.00034598,4]
[315001823,1708725041361,-170.33714574,0.00034725,2]
[315001824,1708725041374,-167.0,0.00034725,2]
[315001825,1708725041383,-159.39088988,0.00034726,7]
[315001826,1708725041393,-500.0,0.00034735,4]
[315001827,1708725041403,-430.7049708,0.00034776,10]
[315001828,1708725041412,-158.09,0.00034789,2]
[315001829,1708725041422,-280.0,0.0003479,2]
[315001830,1708725041431,-170.33714574,0.00034862,2]
[315001831,1708725041440,-500.0,0.00034872,4]
[315001832,1708725041450,-170.33714574,0.00034999,2]
[315001833,1708725041459,-586.90975074,0.00035,4]
[315001834,1708725041468,-229.20433756,0.00035,7]
[315001835,1708725041477,-500.0,0.00035009,4]
[315001836,1708725041486,-150.0,0.00035128,2]
[315001837,1708725041496,-158.09,0.0003513,2]
[315001838,1708725041506,-500.0,0.00035146,4]
[315001839,1708725041515,-151.0,0.00035226,2]
[315001840,1708725041524,-342.61198265,0.00035283,4]
[315001841,1708725041533,-170.33714574,0.00035461,2]
[315001842,1708725041542,-158.09,0.00035471,2]
[315001843,1708725041551,-170.33714574,0.00035788,2]
[315001844,1708725041561,-1676.76,0.00035798,2]
[315001845,1708725041570,-158.09,0.00035812,2]
[315001846,1708725041580,-170.33714574,0.00035985,2]
[315001847,1708725041589,-170.33714574,0.00035985,2]
[315001848,1708725041598,-170.33714574,0.00035985,2]
[315001849,1708725041608,-5536.79113088,0.00035995,2]
[315001850,1708725041617,-170.33714574,0.00036003,2]
[315001851,1708725041626,-170.33714574,0.00036003,2]
[315001852,1708725041636,-170.33714574,0.00036003,2]
[315001853,1708725041645,-170.33714574,0.00036003,2]
[315001854,1708725041655,-170.33714574,0.00036011,2]
[315001855,1708725041664,-170.33714574,0.00036011,2]
[315001856,1708725041674,-170.33714574,0.00036011,2]
[315001857,1708725041683,-170.33714574,0.00036011,2]
[315001858,1708725041693,-5800.0,0.00036013,2]
[315001859,1708725041703,-150.0,0.00036019,2]
[315001860,1708725041712,-170.33714574,0.0003602,2]
[315001861,1708725041722,-170.33714574,0.0003602,2]
[315001862,1708725041731,-170.33714574,0.0003602,2]
[315001863,1708725041741,-170.33714574,0.0003602,2]
[315001864,1708725041753,-5800.0,0.00036021,2]
[315001865,1708725041763,-170.33714574,0.00036028,2]
[315001866,1708725041772,-170.33714574,0.00036028,2]
[315001867,1708725041781,-170.33714574,0.00036028,2]
[315001868,1708725041791,-170.33714574,0.00036028,2]
[315001869,1708725041800,-5800.0,0.0003603,2]
[315001870,1708725041809,-5800.0,0.00036038,2]
[315001871,1708725041818,-158.09,0.00036153,2]
[315001872,1708725041828,-280.0,0.0003616,7]
[315001873,1708725041838,-170.33714574,0.00036221,2]
[315001874,1708725041848,-170.33714574,0.00036221,2]
[315001875,1708725041857,-500.0,0.00036231,2]
[315001876,1708725041866,-500.0,0.00036231,2]
[315001877,1708725041875,-500.0,0.00036231,2]
[315001878,1708725041884,-500.0,0.00036231,2]
[315001879,1708725041893,-150.0,0.00036231,2]
[315001880,1708725041906,-500.0,0.00036231,2]
[315001881,1708725041916,-158.09,0.00036494,2]
[315001882,1708725041925,-159.04,0.00036551,2]
[315001883,1708725041935,-170.33714574,0.00036825,2]
[315001884,1708725041945,-158.09,0.00036835,2]
[315001885,1708725041954,-912.42,0.0003684,2]
[315001886,1708725041964,-151.5,0.00036898,2]
[315001887,1708725041973,-150.0,0.0003691,2]
[315001888,1708725041983,-170.33714574,0.00036975,2]
[315001889,1708725041992,-500.0,0.00036985,10]
[315001890,1708725042001,-170.33714574,0.00036998,2]
[315001891,1708725042011,-1500.0,0.00037008,2]
[315001892,1708725042021,-170.33714574,0.00037016,2]
[315001893,1708725042030,-170.33714574,0.00037016,2]
[315001896,1708725042232,-170.33714574,0.00037016,2]
[315001897,1708725042278,-4575.22,0.00037026,2]
[315001898,1708725042288,-170.33714574,0.00037065,2]
[315001899,1708725042297,-1676.76,0.00037075,2]
[315001900,1708725042306,-170.33714574,0.00037099,2]
[315001901,1708725042315,-1500.0,0.00037109,2]
[315001902,1708725042324,-165.11170113,0.00037128,7]
[315001903,1708725042333,-170.33714574,0.00037135,2]
[315001904,1708725042343,-1500.0,0.00037145,2]
[315001905,1708725042352,-163.56089977,0.00037166,3]
[315001906,1708725042361,-158.09,0.00037176,2]
[315001907,1708725042375,-168.75,0.0003726,2]
[315001908,1708725042385,-170.33714574,0.00037263,2]
[315001909,1708725042395,-170.33714574,0.00037263,2]
[315001911,1708725042405,-170.33714574,0.00037263,2]
[315001913,1708725042415,-170.33714574,0.00037263,2]
[315001914,1708725042425,-5536.79113079,0.00037273,2]
[315001915,1708725042434,-170.33714574,0.00037389,2]
[315001916,1708725042444,-1500.0,0.00037399,2]
[315001917,1708725042454,-170.33714574,0.00037425,2]
[315001918,1708725042464,-1500.0,0.00037435,2]
[315001919,1708725042474,-170.33714574,0.00037443,2]
[315001920,1708725042483,-1500.0,0.00037453,2]
[315001921,1708725042493,-158.09,0.00037517,2]
[315001922,1708725042502,-280.0,0.0003753,7]
[315001923,1708725042511,-170.33714574,0.00037533,2]
[315001924,1708725042521,-447.6947,0.00037535,2]
[315001925,1708725042530,-154.16931544,0.00037543,7]
[315001926,1708725042540,-170.33714574,0.00037624,2]
[315001927,1708725042550,-170.33714574,0.00037624,2]
[315001928,1708725042559,-170.33714574,0.00037624,2]
[315001929,1708725042568,-170.33714574,0.00037624,2]
[315001930,1708725042577,-500.0,0.00037634,2]
[315001931,1708725042586,-500.0,0.00037634,2]
[315001932,1708725042596,-500.0,0.00037634,2]
[315001933,1708725042605,-500.0,0.00037634,2]
[315001934,1708725042614,-500.0,0.00037634,2]
[315001935,1708725042624,-929.02,0.00037634,4]
[315001936,1708725042633,-500.0,0.00037634,4]
[315001937,1708725042642,-500.0,0.00037634,4]
[315001938,1708725042652,-362.13320883,0.00037634,4]
[315001939,1708725042661,-500.0,0.00037634,4]
[315001940,1708725042671,-1000.0,0.00037634,7]
[315001941,1708725042680,-535.75241118,0.00037634,4]
[315001942,1708725042689,-180.0,0.00037671,2]
[315001943,1708725042700,-170.33714574,0.00037728,2]
[315001944,1708725042709,-400.0,0.00037738,2]
[315001945,1708725042719,-170.33714574,0.0003776,2]
[315001946,1708725042729,-170.33714574,0.00037761,2]
[315001947,1708725042738,-170.33714574,0.00037761,2]
[315001948,1708725042749,-170.33714574,0.00037761,2]
[315001949,1708725042759,-500.0,0.0003777,4]
[315001950,1708725042769,-569.03,0.0003777,4]
[315001951,1708725042778,-500.0,0.0003777,4]
[315001952,1708725042789,-500.0,0.0003777,4]
[315001953,1708725042798,-500.0,0.00037771,2]
[315001954,1708725042810,-500.0,0.00037771,2]
[315001955,1708725042819,-500.0,0.00037771,2]
[315001956,1708725042831,-500.0,0.00037771,2]
[315001957,1708725042840,-929.02,0.00037771,4]
[315001958,1708725042850,-500.0,0.00037771,4]
[315001959,1708725042859,-1015.86806114,0.00037771,7]
[315001960,1708725042870,-150.0,0.00037801,2]
[315001961,1708725042879,-170.33714574,0.00037898,2]
[315001962,1708725042889,-500.0,0.00037908,2]
[315001963,1708725042899,-929.02,0.00037908,4]
[315001964,1708725042908,-500.0,0.00037908,4]
[315001965,1708725042918,-170.33714574,0.00038035,2]
[315001966,1708725042927,-500.0,0.00038045,2]
[315001967,1708725042937,-929.02,0.00038045,4]
[315001968,1708725042946,-500.0,0.00038045,4]
[315001969,1708725042956,-170.33714574,0.00038071,2]
[315001970,1708725042966,-500.0,0.00038081,10]
[315001971,1708725042975,-170.33714574,0.00038146,2]
[315001972,1708725042985,-170.33714574,0.00038146,2]
[315001973,1708725042994,-170.33714574,0.00038146,2]
[315001974,1708725043003,-170.33714574,0.00038146,2]
[315001975,1708725043012,-170.33714574,0.00038146,2]
[315001976,1708725043021,-170.33714574,0.00038146,2]
[315001977,1708725043031,-170.33714574,0.00038146,2]
[315001978,1708725043040,-500.0,0.00038156,2]
[315001979,1708725043049,-500.0,0.00038156,2]
[315001980,1708725043059,-500.0,0.00038156,2]
[315001981,1708725043068,-500.0,0.00038156,2]
[315001982,1708725043077,-500.0,0.00038156,2]
[315001983,1708725043086,-500.0,0.00038156,2]
[315001984,1708725043095,-500.0,0.00038156,2]
[315001985,1708725043105,-500.0,0.00038156,2]
[315001986,1708725043114,-500.0,0.00038156,2]
[315001987,1708725043122,-500.0,0.00038156,2]
[315001988,1708725043131,-500.0,0.00038156,2]
[315001989,1708725043141,-500.0,0.00038156,2]
[315001990,1708725043150,-500.0,0.00038156,2]
[315001991,1708725043159,-500.0,0.00038156,2]
[315001992,1708725043168,-500.0,0.00038156,2]
[315001993,1708725043178,-500.0,0.00038156,2]
[315001994,1708725043187,-309.18,0.00038156,2]
[315001995,1708725043196,-500.0,0.00038156,2]
[315001996,1708725043206,-500.0,0.00038156,2]
[315001997,1708725043215,-500.0,0.00038156,2]
[315001998,1708725043225,-373.4,0.00038156,2]
[315001999,1708725043234,-170.33714574,0.00038172,2]
[315002000,1708725043243,-630.02,0.00038182,2]
[315002001,1708725043253,-929.02,0.00038182,4]
[315002002,1708725043262,-500.0,0.00038182,4]
[315002003,1708725043272,-170.33714574,0.00038231,2]
[315002004,1708725043282,-170.33714574,0.00038234,2]
[315002005,1708725043291,-1500.0,0.00038244,2]
[315002006,1708725043300,-626.6768993,0.00038251,2]
[315002007,1708725043309,-170.33714574,0.00038309,2]
[315002008,1708725043319,-929.02,0.00038319,4]
[315002009,1708725043328,-463.4,0.00038319,4]
[315002010,1708725043338,-170.33714574,0.00038342,2]
[315002011,1708725043348,-170.33714574,0.00038345,2]
[315002012,1708725043357,-170.33714574,0.00038346,2]
[315002013,1708725043366,-170.33714574,0.00038346,2]
[315002014,1708725043376,-170.33714574,0.00038346,2]
[315002015,1708725043385,-1676.76,0.00038352,2]
[315002016,1708725043394,-500.0,0.00038355,4]
[315002017,1708725043405,-500.0,0.00038355,4]
[315002018,1708725043415,-500.0,0.00038355,2]
[315002019,1708725043425,-3758.37,0.00038356,15]
[315002020,1708725043434,-600.0,0.00038391,2]
[315002021,1708725043443,-170.33714574,0.00038446,2]
[315002022,1708725043455,-929.02,0.00038456,4]
[315002023,1708725043465,-500.0,0.00038492,2]
[315002024,1708725043475,-170.33714574,0.0003854,2]
[315002025,1708725043484,-204.0,0.0003854,2]
[315002026,1708725043494,-170.33714574,0.00038542,2]
[315002027,1708725043503,-170.33714574,0.00038542,2]
[315002028,1708725043513,-170.33714574,0.00038542,2]
[315002029,1708725043523,-170.33714574,0.00038549,2]
[315002030,1708725043532,-5536.79113079,0.00038552,2]
[315002031,1708725043542,-356.17645661,0.00038559,4]
[315002032,1708725043551,-500.0,0.00038559,4]
[315002033,1708725043560,-500.0,0.00038559,4]
[315002034,1708725043570,-170.33714574,0.00038583,2]
[315002035,1708725043580,-929.02,0.00038593,4]
[315002036,1708725043589,-170.33714574,0.0003862,2]
[315002037,1708725043598,-170.33714574,0.0003863,2]
[315002038,1708725043607,-170.33714574,0.0003863,2]
[315002039,1708725043617,-170.33714574,0.0003863,2]
[315002040,1708725043626,-4626.22276792,0.0003864,2]
[315002041,1708725043635,-790.18610453,0.0003864,7]
[315002042,1708725043645,-170.33714574,0.00038686,2]
[315002043,1708725043654,-170.33714574,0.0003869,2]
[315002044,1708725043663,-150.0,0.00038691,2]
[315002045,1708725043673,-500.0,0.00038696,4]
[315002046,1708725043683,-666.0,0.00038699,2]
[315002047,1708725043692,-654.58033818,0.000387,5]
[315002048,1708725043704,-929.02,0.0003873,4]
[315002049,1708725043714,-170.33714574,0.00038811,2]
[315002050,1708725043723,-1500.0,0.00038821,2]
[315002051,1708725043732,-170.33714574,0.00038823,2]
[315002052,1708725043742,-500.0,0.00038833,4]
[315002053,1708725043755,-929.02,0.00038867,4]
[315002054,1708725043765,-170.33714574,0.00038874,2]
[315002055,1708725043774,-170.33714574,0.00038874,2]
[315002056,1708725043783,-170.33714574,0.0003888,2]
[315002057,1708725043793,-170.33714574,0.0003888,2]
[315002058,1708725043802,-170.33714574,0.0003888,2]
[315002059,1708725043812,-1555.744601,0.00038884,30]
[315002060,1708725043822,-153.54957341,0.00038884,30]
[315002061,1708725043832,-153.54957341,0.00038884,30]
[315002062,1708725043843,-1282.849124,0.00038884,2]
[315002063,1708725043853,-4437.42,0.0003889,2]
[315002064,1708725043862,-280.0,0.000389,7]
[315002065,1708725043871,-2000.0,0.000389,2]
[315002066,1708725043882,-352.178949,0.00038904,14]
[315002067,1708725043891,-500.0,0.0003897,4]
[315002068,1708725043901,-155.0,0.00039,2]
[315002069,1708725043910,-929.02,0.00039004,4]
[315002070,1708725043919,-150.7975682,0.0003903,10]
[315002071,1708725043928,-679.78112059,0.0003903,10]
[315002072,1708725043937,-200.0,0.000391,2]
[315002073,1708725043948,-200.0,0.000391,14]
[315002074,1708725043957,-200.0,0.000391,2]
[315002075,1708725043967,-500.0,0.00039107,4]
[315002076,1708725043976,-150.0,0.00039109,2]
[315002077,1708725043985,-151.0,0.0003914,2]
[315002078,1708725043994,-250.49088,0.0003914,2]
[315002079,1708725044004,-929.02,0.00039141,4]
[315002080,1708725044013,-500.0,0.00039177,10]
[315002081,1708725044023,-150.0,0.00039196,5]
[315002082,1708725044032,-200.0,0.00039199,5]
[315002083,1708725044041,-800.0,0.00039199,5]
[315002085,1708725044051,-200.0,0.00039199,20]
[315002087,1708725044060,-153.54957341,0.00039218,30]
[315002089,1708725044069,-150.0,0.00039233,2]
[315002091,1708725044078,-500.0,0.00039244,4]
[315002093,1708725044087,-1000.0,0.0003926,2]
[315002094,1708725044096,-929.02,0.00039278,4]
[315002096,1708725044105,-150.0,0.0003929,2]
[315002098,1708725044114,-150.0,0.00039296,2]
[315002100,1708725044123,-150.0,0.00039298,2]
[315002102,1708725044132,-150.0,0.00039329,2]
[315002104,1708725044141,-150.0,0.0003935,2]
[315002105,1708725044150,-150.0,0.00039353,2]
[315002108,1708725044159,-150.0,0.00039363,2]
[315002109,1708725044168,-150.0,0.00039372,2]
[315002111,1708725044177,-150.0,0.00039376,2]
[315002114,1708725044187,-500.0,0.00039381,4]
[315002116,1708725044196,-150.0,0.00039383,2]
[315002117,1708725044207,-150.0,0.00039394,2]
[315002119,1708725044215,-929.02,0.00039415,4]
[315002121,1708725044224,-150.0,0.0003942,2]
[315002124,1708725044233,-150.0,0.00039422,2]
[315002125,1708725044242,-150.0,0.00039441,2]
[315002128,1708725044252,-150.0,0.00039442,2]
[315002129,1708725044261,-150.0,0.00039465,2]
[315002131,1708725044270,-150.0,0.00039467,2]
[315002133,1708725044279,-150.0,0.00039469,2]
[315002135,1708725044288,-150.0,0.0003947,2]
[315002137,1708725044296,-150.0,0.00039476,2]
[315002139,1708725044306,-150.0,0.00039477,2]
[315002141,1708725044314,-150.0,0.00039486,2]
[315002142,1708725044323,-150.0,0.00039496,2]
[315002143,1708725044332,-150.0,0.00039497,2]
[315002144,1708725044344,-150.0,0.00039505,2]
[315002145,1708725044353,-150.0,0.00039507,2]
[315002146,1708725044362,-150.0,0.00039508,2]
[315002147,1708725044371,-150.0,0.00039509,2]
[315002148,1708725044380,-150.0,0.00039509,2]
[315002149,1708725044389,-150.0,0.0003951,2]
[315002150,1708725044399,-2125.7238468,0.00039517,9]
[315002151,1708725044408,-500.0,0.00039518,4]
[315002152,1708725044417,-150.0,0.0003952,2]
[315002153,1708725044427,-150.0,0.00039529,2]
[315002154,1708725044436,-150.0,0.00039535,2]
[315002155,1708725044446,-150.0,0.0003955,2]
[315002156,1708725044457,-929.02,0.00039552,4]
[315002157,1708725044466,-3297.99009167,0.00039555,11]
[315002158,1708725044475,-150.0,0.00039558,2]
[315002159,1708725044485,-150.0,0.00039564,2]
[315002160,1708725044494,-150.0,0.00039564,2]
[315002161,1708725044503,-150.0,0.00039566,2]
[315002162,1708725044512,-150.0,0.00039566,2]
[315002163,1708725044522,-4318.34052194,0.00039566,2]
[315002164,1708725044531,-150.0,0.00039568,2]
[315002165,1708725044541,-300.0,0.00039577,2]
[315002166,1708725044550,-150.0,0.00039582,2]
[315002167,1708725044560,-150.0,0.00039583,2]
[315002168,1708725044569,-150.0,0.00039593,2]
[315002169,1708725044578,-150.0,0.00039596,2]
[315002170,1708725044587,-162.92132155,0.00039597,2]
[315002171,1708725044597,-175.1144165,0.00039597,2]
[315002172,1708725044606,-200.0,0.000396,14]
[315002173,1708725044615,-150.0,0.00039601,2]
[315002174,1708725044624,-150.0,0.00039604,2]
[315002175,1708725044633,-150.0,0.0003961,2]
[315002176,1708725044643,-54067.0219058,0.00039617,30]
[315002177,1708725044652,-150.0,0.00039617,2]
[315002178,1708725044662,-150.0,0.00039619,2]
[315002179,1708725044671,-4368.78569997,0.00039625,30]
[315002180,1708725044681,-150.0,0.00039628,2]
[315002181,1708725044691,-150.0,0.00039629,2]
[315002182,1708725044701,-1676.76,0.0003963,2]
[315002183,1708725044710,-150.0,0.00039631,2]
[315002184,1708725044720,-150.0,0.00039645,2]
[315002185,1708725044729,-150.0,0.00039649,2]
[315002186,1708725044739,-54067.0219058,0.0003965,30]
[315002187,1708725044751,-29036.91180289,0.00039653,30]
[315002188,1708725044801,-25030.11010291,0.00039653,30]
[315002189,1708725044811,-500.0,0.00039655,4]
[315002190,1708725044820,-172.67273253,0.00039659,2]
[315002191,1708725044831,-150.0,0.00039666,2]
[315002192,1708725044841,-150.0,0.00039671,2]
[315002193,1708725044854,-300.0,0.00039671,2]
[315002194,1708725044865,-150.0,0.00039676,2]
[315002195,1708725044877,-800.0,0.00039679,5]
[315002196,1708725044888,-929.02,0.00039689,4]
[315002197,1708725044900,-150.0,0.00039692,2]
[315002198,1708725044910,-150.0,0.00039692,2]
[315002199,1708725044921,-4368.78569997,0.00039692,30]
[315002200,1708725044933,-150.0,0.000397,2]
[315002201,1708725044944,-54067.0219058,0.00039701,30]
[315002202,1708725044956,-5000.0,0.00039713,3]
[315002203,1708725044966,-150.0,0.00039713,2]
[315002204,1708725044976,-150.0,0.00039714,2]
[315002205,1708725044985,-300.0,0.00039715,2]
[315002206,1708725044996,-150.0,0.00039716,2]
[315002207,1708725045006,-150.0,0.00039719,2]
[315002208,1708725045017,-337.13181189,0.0003972,2]
[315002209,1708725045028,-352.178949,0.00039726,14]
[315002210,1708725045038,-72940.68674633,0.00039732,4]
[315002211,1708725045111,-12527.15854377,0.00039732,4]
[315002212,1708725045122,-300.0,0.00039738,2]
[315002213,1708725045132,-4368.78569997,0.00039742,30]
[315002214,1708725045143,-150.0,0.00039745,2]
[315002215,1708725045154,-150.0,0.00039751,2]
[315002216,1708725045164,-150.0,0.00039754,2]
[315002217,1708725045173,-300.0,0.00039757,2]
[315002218,1708725045183,-54067.0219058,0.00039759,30]
[315002219,1708725045193,-4368.78569997,0.00039759,30]
[315002220,1708725045204,-150.0,0.00039762,2]
[315002221,1708725045214,-4368.78569997,0.00039764,30]
[315002223,1708725045225,-150.0,0.00039766,2]
[315002225,1708725045236,-150.0,0.00039774,2]
[315002226,1708725045246,-150.0,0.00039777,2]
[315002227,1708725045257,-150.0,0.00039778,2]
[315002228,1708725045267,-150.0,0.0003978,2]
[315002229,1708725045277,-150.0,0.00039785,2]
[315002230,1708725045287,-500.0,0.00039792,4]
[315002232,1708725045298,-150.0,0.00039795,2]
[315002234,1708725045308,-302.0,0.00039798,4]
[315002235,1708725045319,-150.0,0.00039798,2]
[315002236,1708725045329,-150.0,0.00039798,2]
[315002237,1708725045340,-150.0,0.00039799,2]
[315002238,1708725045351,-150.0,0.00039805,2]
[315002239,1708725045361,-150.0,0.00039807,2]
[315002241,1708725045371,-150.0,0.00039816,2]
[315002242,1708725045381,-150.0,0.00039817,2]
[315002243,1708725045392,-150.0,0.00039819,2]
[315002244,1708725045403,-150.0,0.00039821,2]
[315002245,1708725045413,-150.0,0.00039821,2]
[315002246,1708725045423,-150.0,0.00039823,2]
[315002247,1708725045433,-150.0,0.00039825,2]
[315002248,1708725045443,-929.02,0.00039826,4]
[315002249,1708725045454,-150.0,0.00039827,2]
[315002250,1708725045464,-5536.79113079,0.0003983,2]
[315002251,1708725045473,-150.0,0.0003984,2]
[315002252,1708725045483,-1500.0,0.0003985,2]
[315002253,1708725045494,-150.0,0.00039854,2]
[315002254,1708725045506,-150.0,0.00039858,2]
[315002255,1708725045516,-150.0,0.00039864,2]
[315002256,1708725045526,-150.0,0.00039872,2]
[315002257,1708725045537,-153.14743279,0.0003988,6]
[315002258,1708725045547,-150.0,0.00039884,2]
[315002259,1708725045557,-150.0,0.00039886,2]
[315002260,1708725045568,-150.0,0.00039894,2]
[315002261,1708725045578,-150.0,0.00039895,2]
[315002262,1708725045589,-150.0,0.00039899,2]
[315002263,1708725045599,-178.33726254,0.000399,13]
[315002264,1708725045609,-182.95958848,0.000399,2]
[315002265,1708725045619,-150.0,0.00039906,2]
[315002266,1708725045629,-150.0,0.00039907,2]
[315002267,1708725045638,-150.0,0.00039913,2]
[315002268,1708725045649,-150.0,0.00039915,2]
[315002269,1708725045659,-150.0,0.0003992,2]
[315002270,1708725045669,-172.67273251,0.00039922,2]
[315002271,1708725045679,-500.0,0.00039929,4]
[315002272,1708725045690,-150.0,0.00039935,2]
[315002273,1708725045702,-150.0,0.00039948,2]
[315002274,1708725045711,-150.0,0.00039954,2]
[315002275,1708725045722,-85467.8452901,0.0003996,5]
[315002276,1708725045732,-150.0,0.00039962,2]
[315002277,1708725045744,-150.0,0.00039962,2]
[315002278,1708725045755,-929.02,0.00039963,4]
[315002279,1708725045765,-204.78940017,0.00039964,2]
[315002280,1708725045775,-150.0,0.00039968,2]
[315002281,1708725045787,-85467.8452901,0.00039969,5]
[315002282,1708725045798,-150.0,0.00039971,2]
[315002283,1708725045811,-6017.97284536,0.00039977,2]
[315002284,1708725045822,-159373.21242975,0.0003998,5]
[315002285,1708725045837,-485.98464148,0.0003998,5]
[315002286,1708725045851,-1289.13023224,0.0003998,5]